lending/lending_fUSD_20260209
["ID","MTS","AMOUNT","RATE_DAILY","PERIOD"]
[404827277,1770601846830,-160.75938018,0.00044356,120]
[404827278,1770601846846,-161.64344429,0.00044356,120]
[404827279,1770601846858,-529.20514048,0.00044356,120]
[404827280,1770601846870,-500.0,0.00044356,120]
[404827281,1770601846881,-500.0,0.00044356,120]
[404827282,1770601846891,-500.0,0.00044356,120]
[404827283,1770601846902,-175.14038867,0.00044356,120]
[404827284,1770601846912,-500.0,0.00044356,120]
[404827285,1770601846923,-510.72335603,0.00044356,120]
[404827286,1770601846932,-529.0463945,0.00044356,120]
[404827287,1770601846942,-504.82034849,0.00044356,120]
[404827288,1770601846952,-438.3929553,0.00044356,120]
[404827289,1770601846963,-500.0,0.00044356,120]
[404827290,1770601846973,-500.0,0.00044356,120]
[404827291,1770601846986,-500.0,0.00044356,120]
[404827292,1770601846996,-500.0,0.00044356,120]
[404827293,1770601847006,-500.0,0.00044356,120]
[404827294,1770601847016,-500.0,0.00044356,120]
[404827295,1770601847027,-500.0,0.00044356,120]
[404827296,1770601847038,-500.0,0.00044356,120]
[404827297,1770601847052,-172.68222306,0.00044356,120]
[404827298,1770601847062,-482.10716386,0.00044356,2]
[404827299,1770601847072,-500.0,0.00044356,120]
[404827300,1770601847082,-529.35217191,0.00044356,120]
[404827301,1770601847092,-340.82581627,0.00044356,120]
[404827302,1770601847102,-157.03574359,0.00044356,120]
[404827303,1770601847113,-187.73874231,0.00044356,120]
[404827304,1770601847137,-500.0,0.00044356,120]
[404827305,1770601847148,-500.0,0.00044356,120]
[404827306,1770601847159,-505.90747232,0.00044356,120]
[404827307,1770601847170,-400.0,0.0004437,3]
[404827308,1770601847184,-300.0,0.0004437,3]
[404827309,1770601847195,-400.0,0.0004437,3]
[404827310,1770601847207,-400.0,0.0004437,3]
[404827311,1770601847217,-300.0,0.0004437,3]
[404827312,1770601847228,-702.72197926,0.0004437,3]
[404827313,1770601847240,-501.16630572,0.0004437,3]
[404827314,1770601847250,-300.0,0.00044373,5]
[404827315,1770601847269,-150.0,0.00044373,10]
[404827316,1770601847282,-200.0,0.00044378,120]
[404827317,1770601847295,-150.0,0.00044382,60]
[404827318,1770601847307,-150.0,0.00044384,30]
[404827319,1770601847319,-150.0,0.00044384,30]
[404827320,1770601847330,-150.0,0.00044384,30]
[404827321,1770601847345,-150.0,0.00044384,30]
[404827322,1770601847361,-150.0,0.00044384,30]
[404827323,1770601847376,-152.23094233,0.00044384,30]
[404827324,1770601847388,-150.0,0.00044384,30]
[404827325,1770601847401,-153.7216878,0.00044384,30]
[404827326,1770601847414,-152.50050934,0.00044384,30]
[404827327,1770601847426,-150.0,0.00044384,30]
[404827328,1770601847436,-150.0,0.00044385,30]
[404827329,1770601847447,-150.0,0.00044387,30]
[404827330,1770601847459,-150.0,0.00044388,30]
[404827331,1770601847470,-150.0,0.00044388,30]
[404827332,1770601847484,-150.0,0.00044388,30]
[404827333,1770601847495,-150.0,0.00044388,30]
[404827334,1770601847508,-150.0,0.00044389,30]
[404827335,1770601847519,-150.0,0.00044389,30]
[404827336,1770601847532,-150.0,0.00044389,30]
[404827337,1770601847544,-150.0,0.0004439,30]
[404827338,1770601847556,-150.0,0.00044392,30]
[404827339,1770601847568,-150.0,0.00044392,30]
[404827340,1770601847597,-150.0,0.00044392,30]
[404827341,1770601847608,-150.0,0.00044393,30]
[404827342,1770601847622,-150.0,0.00044393,30]
[404827343,1770601847634,-150.0,0.00044394,30]
[404827344,1770601847646,-16125.0040037,0.00044394,2]
[404827345,1770601847671,-150.0,0.00044395,30]
[404827346,1770601847684,-150.0,0.00044395,30]
[404827347,1770601847697,-150.0,0.00044395,30]
[404827348,1770601847712,-266.0,0.00044395,2]
[404827349,1770601847729,-150.0,0.00044396,30]
[404827350,1770601847741,-150.0,0.00044396,30]
[404827351,1770601847753,-188.20859541,0.00044396,7]
[404827352,1770601847767,-150.0,0.00044397,30]
[404827353,1770601847778,-150.0,0.00044398,30]
[404827354,1770601847789,-150.0,0.00044398,30]
[404827355,1770601847802,-150.0,0.00044399,30]
[404827356,1770601847814,-340.54674987,0.00044399,46]
[404827357,1770601847824,-150.0,0.000444,30]
[404827358,1770601847834,-150.0,0.000444,30]
[404827359,1770601847844,-150.0,0.000444,29]
[404827360,1770601847853,-253.0,0.000444,46]
[404827361,1770601847863,-150.0,0.000444,74]
[404827362,1770601847873,-150.0,0.000444,30]
[404827363,1770601847884,-150.0,0.00044401,30]
[404827364,1770601847894,-150.0,0.00044401,30]
[404827365,1770601847905,-500.0,0.00044401,120]
[404827366,1770601847915,-500.0,0.00044401,120]
[404827367,1770601847925,-500.0,0.00044401,120]
[404827368,1770601847934,-500.0,0.00044401,120]
[404827369,1770601847948,-500.0,0.00044401,120]
[404827370,1770601847958,-500.0,0.00044401,120]
[404827371,1770601847970,-654.62,0.00044401,120]
[404827372,1770601847979,-500.0,0.00044401,120]
[404827373,1770601847990,-500.0,0.00044401,120]
[404827374,1770601847999,-500.0,0.00044401,120]
[404827375,1770601848009,-500.0,0.00044401,120]
[404827376,1770601848019,-500.0,0.00044401,120]
[404827377,1770601848029,-500.0,0.00044401,120]
[404827378,1770601848040,-500.0,0.00044401,120]
[404827379,1770601848050,-500.0,0.00044401,120]
[404827380,1770601848061,-404.54181712,0.00044401,120]
[404827381,1770601848070,-500.0,0.00044401,120]
[404827382,1770601848080,-635.87743236,0.00044401,120]
[404827383,1770601848090,-500.0,0.00044401,120]
[404827384,1770601848100,-2051.73,0.00044401,120]
[404827385,1770601848112,-500.0,0.00044401,120]
[404827386,1770601848122,-500.0,0.00044401,120]
[404827387,1770601848132,-250.0,0.00044401,30]
[404827388,1770601848142,-254.89289494,0.00044401,54]
[404827389,1770601848161,-231.28369723,0.00044401,30]
[404827390,1770601848172,-239.84119403,0.00044401,54]
[404827391,1770601848182,-150.0,0.00044402,30]
[404827392,1770601848193,-150.0,0.00044403,30]
[404827393,1770601848207,-150.0,0.00044403,30]
[404827394,1770601848217,-150.0,0.00044404,30]
[404827395,1770601848227,-150.0,0.00044404,30]
[404827396,1770601848238,-150.0,0.00044404,30]
[404827397,1770601848248,-500.0,0.00044405,120]
[404827398,1770601848259,-572.6932049,0.00044405,120]
[404827399,1770601848269,-522.52409704,0.00044405,120]
[404827400,1770601848279,-165.68970657,0.00044405,7]
[404827401,1770601848289,-500.0,0.00044405,120]
[404827402,1770601848302,-500.0,0.00044405,120]
[404827403,1770601848312,-454.95703037,0.00044405,120]
[404827404,1770601848323,-511.274135,0.00044405,120]
[404827405,1770601848335,-573.40273368,0.00044405,120]
[404827406,1770601848346,-616.17,0.00044405,120]
[404827407,1770601848357,-500.0,0.00044405,120]
[404827408,1770601848367,-500.0,0.00044405,120]
[404827409,1770601848378,-565.87436082,0.00044405,120]
[404827410,1770601848389,-500.0,0.00044405,120]
[404827411,1770601848401,-500.0,0.00044405,120]
[404827412,1770601848411,-546.29,0.00044405,120]
[404827413,1770601848423,-500.0,0.00044405,120]
[404827414,1770601848435,-500.0,0.00044405,120]
[404827415,1770601848446,-500.0,0.00044405,120]
[404827416,1770601848456,-500.0,0.00044405,120]
[404827417,1770601848466,-500.0,0.00044405,120]
[404827418,1770601848477,-230.5057378,0.00044405,120]
[404827419,1770601848487,-500.0,0.00044405,120]
[404827420,1770601848497,-500.0,0.00044405,120]
[404827421,1770601848507,-500.0,0.00044405,120]
[404827422,1770601848518,-500.0,0.00044405,120]
[404827423,1770601848529,-500.0,0.00044405,120]
[404827424,1770601848539,-630.54671926,0.00044405,120]
[404827425,1770601848549,-500.0,0.00044405,120]
[404827426,1770601848559,-500.82684213,0.00044405,120]
[404827427,1770601848569,-500.0,0.00044405,120]
[404827428,1770601848580,-500.0,0.00044405,120]
[404827429,1770601848591,-500.0,0.00044405,120]
[404827430,1770601848601,-500.0,0.00044405,120]
[404827431,1770601848613,-500.0,0.00044405,120]
[404827432,1770601848627,-500.0,0.00044405,120]
[404827433,1770601848638,-500.0,0.00044405,120]
[404827434,1770601848656,-500.0,0.00044405,120]
[404827435,1770601848670,-500.0,0.00044405,120]
[404827436,1770601848680,-500.0,0.00044405,120]
[404827437,1770601848691,-500.0,0.00044405,120]
[404827438,1770601848702,-500.0,0.00044405,120]
[404827439,1770601848715,-500.0,0.00044405,120]
[404827440,1770601848728,-500.0,0.00044405,120]
[404827441,1770601848738,-500.0,0.00044405,120]
[404827442,1770601848747,-361.86873818,0.00044405,120]
[404827443,1770601848759,-500.0,0.00044405,120]
[404827444,1770601848769,-203.29863859,0.00044405,120]
[404827445,1770601848779,-500.0,0.00044405,120]
[404827446,1770601848790,-500.0,0.00044405,120]
[404827447,1770601848802,-1999.0,0.00044405,120]
[404827448,1770601848811,-502.56,0.00044405,120]
[404827449,1770601848821,-500.0,0.00044405,120]
[404827450,1770601848832,-500.0,0.00044405,120]
[404827451,1770601848841,-500.0,0.00044405,120]
[404827452,1770601848852,-500.0,0.00044405,120]
[404827453,1770601848861,-500.0,0.00044405,120]
[404827454,1770601848872,-668.73,0.00044405,120]
[404827455,1770601848881,-500.0,0.00044405,120]
[404827456,1770601848892,-454.33614935,0.00044405,120]
[404827457,1770601848902,-500.0,0.00044405,120]
[404827458,1770601848912,-500.0,0.00044405,120]
[404827459,1770601848922,-500.0,0.00044405,120]
[404827460,1770601848932,-500.0,0.00044405,120]
[404827461,1770601848942,-734.05,0.00044405,120]
[404827462,1770601848952,-176.1856082,0.00044405,120]
[404827463,1770601848962,-613.65203173,0.00044405,120]
[404827464,1770601848972,-500.0,0.00044405,120]
[404827465,1770601848983,-500.0,0.00044405,120]
[404827466,1770601848994,-178.48767498,0.00044405,120]
[404827467,1770601849005,-500.0,0.00044405,120]
[404827468,1770601849016,-528.37,0.00044405,120]
[404827469,1770601849027,-500.0,0.00044405,120]
[404827470,1770601849038,-500.0,0.00044405,120]
[404827471,1770601849049,-500.0,0.00044405,120]
[404827472,1770601849059,-500.0,0.00044405,120]
[404827473,1770601849070,-500.0,0.00044405,120]
[404827474,1770601849080,-500.0,0.00044405,120]
[404827475,1770601849091,-500.0,0.00044405,120]
[404827476,1770601849101,-500.0,0.00044405,120]
[404827477,1770601849111,-500.0,0.00044405,120]
[404827478,1770601849122,-209.55620745,0.00044405,120]
[404827479,1770601849132,-510.35250308,0.00044405,120]
[404827480,1770601849141,-500.0,0.00044405,120]
[404827481,1770601849159,-150.0,0.00044405,30]
[404827482,1770601849169,-600.6410959,0.00044406,120]
[404827483,1770601849178,-500.0,0.00044406,120]
[404827484,1770601849188,-500.0,0.00044406,120]
[404827485,1770601849200,-500.0,0.00044406,120]
[404827486,1770601849210,-500.0,0.00044406,120]
[404827487,1770601849220,-500.0,0.00044406,120]
[404827488,1770601849230,-415.75384191,0.00044406,120]
[404827489,1770601849240,-500.0,0.00044406,120]
[404827490,1770601849250,-500.0,0.00044406,120]
[404827491,1770601849260,-500.0,0.00044406,120]
[404827492,1770601849271,-634.94288468,0.00044406,120]
[404827493,1770601849281,-270.62039998,0.00044406,120]
[404827494,1770601849291,-330.35326712,0.00044406,120]
[404827495,1770601849300,-500.0,0.00044406,120]
[404827496,1770601849310,-500.0,0.00044406,120]
[404827497,1770601849319,-500.0,0.00044406,120]
[404827498,1770601849329,-500.0,0.00044406,120]
[404827499,1770601849339,-500.0,0.00044406,120]
[404827500,1770601849350,-633.32060916,0.00044406,120]
[404827501,1770601849362,-500.0,0.00044406,120]
[404827502,1770601849373,-500.0,0.00044406,120]
[404827503,1770601849383,-500.0,0.00044406,120]
[404827504,1770601849393,-520.63314545,0.00044406,120]
[404827505,1770601849404,-654.62,0.00044406,120]
[404827506,1770601849414,-654.62,0.00044406,120]
[404827507,1770601849424,-654.62,0.00044406,120]
[404827508,1770601849434,-654.62,0.00044406,120]
[404827509,1770601849447,-654.62,0.00044406,120]
[404827510,1770601849459,-654.62,0.00044406,120]
[404827511,1770601849470,-654.62,0.00044406,120]
[404827512,1770601849481,-654.62,0.00044406,120]
[404827513,1770601849491,-654.62,0.00044406,120]
[404827514,1770601849502,-654.62,0.00044406,120]
[404827515,1770601849513,-654.62,0.00044406,120]
[404827516,1770601849522,-654.62,0.00044406,120]
[404827517,1770601849532,-654.62,0.00044406,120]
[404827518,1770601849542,-654.62,0.00044406,120]
[404827519,1770601849552,-654.62,0.00044406,120]
[404827520,1770601849564,-654.62,0.00044406,120]
[404827521,1770601849576,-654.62,0.00044406,120]
[404827522,1770601849587,-654.62,0.00044406,120]
[404827523,1770601849597,-654.62,0.00044406,120]
[404827524,1770601849607,-654.7785568,0.00044406,120]
[404827525,1770601849616,-500.0,0.00044406,120]
[404827526,1770601849627,-500.0,0.00044406,120]
[404827527,1770601849638,-500.0,0.00044406,120]
[404827528,1770601849653,-500.0,0.00044406,120]
[404827529,1770601849667,-500.0,0.00044406,120]
[404827530,1770601849677,-500.0,0.00044406,120]
[404827531,1770601849689,-500.0,0.00044406,120]
[404827532,1770601849699,-500.0,0.00044406,120]
[404827533,1770601849710,-500.0,0.00044406,120]
[404827534,1770601849724,-500.0,0.00044406,120]
[404827535,1770601849735,-500.0,0.00044406,120]
[404827536,1770601849746,-500.0,0.00044406,120]
[404827537,1770601849757,-500.0,0.00044406,120]
[404827538,1770601849768,-500.0,0.00044406,120]
[404827539,1770601849779,-500.0,0.00044406,120]
[404827540,1770601849790,-587.45792035,0.00044406,120]
[404827541,1770601849800,-500.0,0.00044406,120]
[404827542,1770601849810,-500.0,0.00044406,120]
[404827543,1770601849819,-500.0,0.00044406,120]
[404827544,1770601849828,-455.62940519,0.00044406,120]
[404827545,1770601849839,-500.0,0.00044406,120]
[404827546,1770601849850,-500.0,0.00044406,120]
[404827547,1770601849861,-500.0,0.00044406,120]
[404827548,1770601849872,-500.0,0.00044406,120]
[404827549,1770601849882,-500.0,0.00044406,120]
[404827550,1770601849893,-500.0,0.00044406,120]
[404827551,1770601849914,-500.0,0.00044406,120]
[404827552,1770601849924,-500.0,0.00044406,120]
[404827553,1770601849934,-500.0,0.00044406,120]
[404827554,1770601849945,-532.24882632,0.00044406,120]
[404827555,1770601849955,-500.0,0.00044406,120]
[404827556,1770601849966,-500.0,0.00044406,120]
[404827557,1770601849976,-500.0,0.00044406,120]
[404827558,1770601849987,-187.97465583,0.00044406,120]
[404827559,1770601849996,-500.0,0.00044406,120]
[404827560,1770601850008,-500.0,0.00044406,120]
[404827561,1770601850018,-500.0,0.00044406,120]
[404827562,1770601850028,-574.82957846,0.00044406,120]
[404827563,1770601850038,-522.44911098,0.00044406,120]
[404827564,1770601850050,-500.0,0.00044406,120]
[404827565,1770601850060,-616.17,0.00044406,120]
[404827566,1770601850070,-500.0,0.00044406,120]
[404827567,1770601850080,-500.0,0.00044406,120]
[404827568,1770601850091,-151.28011217,0.00044406,120]
[404827569,1770601850101,-500.0,0.00044406,120]
[404827570,1770601850114,-500.0,0.00044406,120]
[404827571,1770601850125,-500.0,0.00044406,120]
[404827572,1770601850135,-500.0,0.00044406,120]
[404827573,1770601850145,-588.05317478,0.00044406,120]
[404827574,1770601850165,-546.29,0.00044406,120]
[404827575,1770601850175,-500.0,0.00044406,120]
[404827576,1770601850187,-500.0,0.00044406,120]
[404827577,1770601850200,-500.0,0.00044406,120]
[404827578,1770601850211,-500.0,0.00044406,120]
[404827579,1770601850222,-500.0,0.00044406,120]
[404827580,1770601850232,-565.52529226,0.00044406,120]
[404827581,1770601850242,-500.0,0.00044406,120]
[404827582,1770601850255,-500.0,0.00044406,120]
[404827583,1770601850266,-500.0,0.00044406,120]
[404827584,1770601850276,-517.94429073,0.00044406,120]
[404827585,1770601850287,-634.62123755,0.00044406,120]
[404827586,1770601850296,-500.0,0.00044406,120]
[404827587,1770601850307,-500.0,0.00044406,120]
[404827588,1770601850319,-500.0,0.00044406,120]
[404827589,1770601850329,-500.0,0.00044406,120]
[404827590,1770601850341,-500.0,0.00044406,120]
[404827591,1770601850352,-457.19041049,0.00044406,120]
[404827592,1770601850364,-500.0,0.00044406,120]
[404827593,1770601850375,-500.0,0.00044406,120]
[404827594,1770601850387,-500.0,0.00044406,120]
[404827595,1770601850403,-500.0,0.00044406,120]
[404827596,1770601850418,-500.0,0.00044406,120]
[404827597,1770601850429,-500.0,0.00044406,120]
[404827598,1770601850440,-500.0,0.00044406,120]
[404827599,1770601850453,-500.0,0.00044406,120]
[404827600,1770601850465,-372.39031497,0.00044406,120]
[404827601,1770601850478,-221.11571322,0.00044406,120]
[404827602,1770601850489,-500.0,0.00044406,120]
[404827603,1770601850500,-500.0,0.00044406,120]
[404827604,1770601850512,-418.70451658,0.00044406,120]
[404827605,1770601850523,-500.0,0.00044406,120]
[404827606,1770601850534,-500.0,0.00044406,120]
[404827607,1770601850547,-500.0,0.00044406,120]
[404827608,1770601850557,-500.0,0.00044406,120]
[404827609,1770601850569,-500.0,0.00044406,120]
[404827610,1770601850580,-500.0,0.00044406,120]
[404827611,1770601850591,-500.0,0.00044406,120]
[404827612,1770601850602,-500.0,0.00044406,120]
[404827613,1770601850612,-500.0,0.00044406,120]
[404827614,1770601850789,-500.0,0.00044406,120]
[404827615,1770601850799,-500.0,0.00044406,120]
[404827616,1770601850810,-500.0,0.00044406,120]
[404827617,1770601850822,-500.0,0.00044406,120]
[404827618,1770601850832,-210.66413037,0.00044406,120]
[404827619,1770601850843,-500.0,0.00044406,120]
[404827620,1770601850854,-500.0,0.00044406,120]
[404827621,1770601850864,-500.0,0.00044406,120]
[404827622,1770601850875,-500.0,0.00044406,120]
[404827623,1770601850885,-500.0,0.00044406,120]
[404827624,1770601850895,-500.0,0.00044406,120]
[404827625,1770601850909,-500.0,0.00044406,120]
[404827626,1770601850920,-500.0,0.00044406,120]
[404827627,1770601850930,-500.0,0.00044406,120]
[404827628,1770601850940,-500.0,0.00044406,120]
[404827629,1770601850951,-500.0,0.00044406,120]
[404827630,1770601850961,-500.0,0.00044406,120]
[404827631,1770601850972,-537.08063432,0.00044406,120]
[404827632,1770601850982,-500.0,0.00044406,120]
[404827633,1770601850992,-500.0,0.00044406,120]
[404827634,1770601851002,-500.0,0.00044406,120]
[404827635,1770601851012,-500.0,0.00044406,120]
[404827636,1770601851022,-500.0,0.00044406,120]
[404827637,1770601851033,-155.6072478,0.00044406,120]
[404827638,1770601851043,-502.56,0.00044406,120]
[404827639,1770601851054,-500.0,0.00044406,120]
[404827640,1770601851065,-500.0,0.00044406,120]
[404827641,1770601851075,-500.0,0.00044406,120]
[404827642,1770601851085,-500.0,0.00044406,120]
[404827643,1770601851096,-500.0,0.00044406,120]
[404827644,1770601851106,-500.0,0.00044406,120]
[404827645,1770601851115,-500.0,0.00044406,120]
[404827646,1770601851125,-500.0,0.00044406,120]
[404827647,1770601851136,-500.0,0.00044406,120]
[404827648,1770601851147,-500.0,0.00044406,120]
[404827649,1770601851163,-500.0,0.00044406,120]
[404827650,1770601851172,-500.0,0.00044406,120]
[404827651,1770601851184,-500.0,0.00044406,120]
[404827652,1770601851194,-218.35379332,0.00044406,120]
[404827653,1770601851206,-184.25576707,0.00044406,120]
[404827654,1770601851216,-500.0,0.00044406,120]
[404827655,1770601851228,-500.0,0.00044406,120]
[404827656,1770601851238,-668.73,0.00044406,120]
[404827657,1770601851249,-500.0,0.00044406,120]
[404827658,1770601851260,-500.0,0.00044406,120]
[404827659,1770601851271,-500.0,0.00044406,120]
[404827660,1770601851282,-500.0,0.00044406,120]
[404827661,1770601851294,-500.0,0.00044406,120]
[404827662,1770601851305,-500.0,0.00044406,120]
[404827663,1770601851315,-500.0,0.00044406,120]
[404827664,1770601851325,-500.0,0.00044406,120]
[404827665,1770601851336,-500.0,0.00044406,120]
[404827666,1770601851347,-500.0,0.00044406,120]
[404827667,1770601851357,-500.0,0.00044406,120]
[404827668,1770601851367,-500.0,0.00044406,120]
[404827669,1770601851377,-500.0,0.00044406,120]
[404827670,1770601851393,-500.0,0.00044406,120]
[404827671,1770601851412,-500.0,0.00044406,120]
[404827672,1770601851422,-343.80335632,0.00044406,120]
[404827673,1770601851433,-500.0,0.00044406,120]
[404827674,1770601851444,-500.0,0.00044406,120]
[404827675,1770601851454,-2051.73,0.00044406,120]
[404827676,1770601851464,-1515.10967727,0.00044406,120]
[404827677,1770601851557,-536.62032273,0.00044406,120]
[404827678,1770601851568,-2051.73,0.00044406,120]
[404827679,1770601851579,-2051.73,0.00044406,120]
[404827680,1770601851589,-2051.73,0.00044406,120]
[404827681,1770601851599,-2051.73,0.00044406,120]
[404827682,1770601851610,-2051.73,0.00044406,120]
[404827683,1770601851619,-2051.73,0.00044406,120]
[404827684,1770601851629,-2051.73,0.00044406,120]
[404827685,1770601851639,-2051.73,0.00044406,120]
[404827686,1770601851653,-2051.73,0.00044406,120]
[404827687,1770601851663,-2051.73,0.00044406,120]
[404827688,1770601851673,-2051.73,0.00044406,120]
[404827689,1770601851683,-528.37,0.00044406,120]
[404827690,1770601851693,-2051.73,0.00044406,120]
[404827691,1770601851703,-2051.73,0.00044406,120]
[404827692,1770601851714,-2051.73,0.00044406,120]
[404827693,1770601851725,-2051.73,0.00044406,120]
[404827694,1770601851735,-2051.73,0.00044406,120]
[404827695,1770601851745,-2051.73,0.00044406,120]
[404827696,1770601851756,-2051.76438722,0.00044406,120]
[404827697,1770601851766,-500.0,0.00044406,120]
[404827698,1770601851776,-500.0,0.00044406,120]
[404827699,1770601851786,-544.86969032,0.00044406,120]
[404827700,1770601851797,-500.0,0.00044406,120]
[404827701,1770601851817,-500.0,0.00044406,120]
[404827702,1770601851829,-500.0,0.00044406,120]
[404827703,1770601851839,-500.0,0.00044406,120]
[404827704,1770601851850,-500.0,0.00044406,120]
[404827705,1770601851860,-500.0,0.00044406,120]
[404827706,1770601851871,-500.0,0.00044406,120]
[404827707,1770601851882,-500.0,0.00044406,120]
[404827708,1770601851892,-500.0,0.00044406,120]
[404827709,1770601851908,-500.0,0.00044406,120]
[404827710,1770601851918,-500.0,0.00044406,120]
[404827711,1770601851928,-500.0,0.00044406,120]
[404827712,1770601851938,-500.0,0.00044406,120]
[404827713,1770601851948,-500.0,0.00044406,120]
[404827714,1770601851958,-518.51227177,0.00044406,120]
[404827715,1770601851967,-500.0,0.00044406,120]
[404827716,1770601851978,-470.19321785,0.00044406,120]
[404827717,1770601851988,-500.0,0.00044406,120]
[404827718,1770601851999,-250.0,0.00044406,30]
[404827719,1770601852011,-223.0315306,0.00044406,30]
[404827720,1770601852020,-150.0,0.00044406,30]
[404827721,1770601852030,-150.0,0.00044406,30]
[404827722,1770601852042,-150.0,0.00044407,30]
[404827723,1770601852053,-500.0,0.00044407,120]
[404827724,1770601852063,-500.0,0.00044407,120]
[404827725,1770601852073,-500.0,0.00044407,120]
[404827726,1770601852084,-510.0305959,0.00044407,120]
[404827727,1770601852094,-500.0,0.00044407,120]
[404827728,1770601852107,-500.0,0.00044407,120]
[404827729,1770601852123,-510.41077862,0.00044407,120]
[404827730,1770601852134,-250.0,0.00044407,54]
[404827731,1770601852145,-250.0,0.00044407,120]
[404827732,1770601852159,-215.0738,0.00044407,54]
[404827733,1770601852169,-150.0,0.00044407,30]
[404827734,1770601852180,-150.0,0.00044407,30]
[404827735,1770601852190,-150.0,0.00044408,30]
[404827736,1770601852200,-150.0,0.00044408,30]
[404827737,1770601852211,-150.0,0.00044409,30]
[404827738,1770601852223,-500.0,0.00044409,120]
[404827739,1770601852233,-500.0,0.00044409,120]
[404827740,1770601852246,-614.02713065,0.00044409,120]
[404827741,1770601852258,-616.17,0.00044409,120]
[404827742,1770601852273,-616.17,0.00044409,120]
[404827743,1770601852287,-616.17,0.00044409,120]
[404827744,1770601852300,-616.17,0.00044409,120]
[404827745,1770601852316,-616.17,0.00044409,120]
[404827746,1770601852334,-616.17,0.00044409,120]
[404827747,1770601852344,-616.17,0.00044409,120]
[404827748,1770601852355,-616.17,0.00044409,120]
[404827749,1770601852365,-616.17,0.00044409,120]
[404827750,1770601852376,-616.17,0.00044409,120]
[404827751,1770601852386,-616.17,0.00044409,120]
[404827752,1770601852399,-616.17,0.00044409,120]
[404827753,1770601852409,-616.17,0.00044409,120]
[404827754,1770601852419,-616.17,0.00044409,120]
[404827755,1770601852429,-616.17,0.00044409,120]
[404827756,1770601852439,-616.17,0.00044409,120]
[404827757,1770601852451,-616.17,0.00044409,120]
[404827758,1770601852462,-616.27857922,0.00044409,120]
[404827759,1770601852473,-500.0,0.00044409,120]
[404827760,1770601852483,-500.0,0.00044409,120]
[404827761,1770601852493,-524.32976139,0.00044409,120]
[404827762,1770601852504,-401.1035249,0.00044409,120]
[404827763,1770601852514,-200.00767164,0.00044409,120]
[404827764,1770601852527,-546.29,0.00044409,120]
[404827765,1770601852537,-546.29,0.00044409,120]
[404827766,1770601852548,-546.29,0.00044409,120]
[404827767,1770601852561,-546.29,0.00044409,120]
[404827768,1770601852572,-546.29,0.00044409,120]
[404827769,1770601852582,-546.29,0.00044409,120]
[404827770,1770601852592,-546.29,0.00044409,120]
[404827771,1770601852604,-546.29,0.00044409,120]
[404827772,1770601852616,-546.29,0.00044409,120]
[404827773,1770601852626,-546.29,0.00044409,120]
[404827774,1770601852644,-546.29,0.00044409,120]
[404827775,1770601852663,-546.29,0.00044409,120]
[404827776,1770601852675,-546.29,0.00044409,120]